bitfinex/quotes_ETHUSD_20250806
["timestamp","ask_amount","ask_price","bid_price","bid_amount"]
[1754481301237,2.89716361,3623.8,3623.5,1e-08]
[1754481301516,4.172,3623.7,3623.5,1e-08]
[1754481305213,0.1376,3623.6,3623.5,1e-08]
[1754481309022,0.1376,3623.6,3623.5,0.46350001]
[1754481310342,0.1376,3623.6,3623.5,1e-08]
[1754481310343,1.064,3623.6,3623.5,1e-08]
[1754481310822,0.5657,3623.6,3623.5,1e-08]
[1754481311331,1.064,3623.6,3623.5,1e-08]
[1754481312119,0.5657,3623.6,3623.5,1e-08]
[1754481312631,1.064,3623.6,3623.5,1e-08]
[1754481313230,3.82368649,3623.6,3623.5,1e-08]
[1754481313410,4.89919545,3623.6,3623.5,1e-08]
[1754481314433,4.92681,3623.6,3623.5,1e-08]
[1754481314637,4.89919545,3623.6,3623.5,1e-08]
[1754481315514,2.13950896,3623.6,3623.5,1e-08]
[1754481315701,1.064,3623.6,3623.5,1e-08]
[1754481315901,0.5657,3623.6,3623.5,1e-08]
[1754481316213,3.32538649,3623.6,3623.5,1e-08]
[1754481318831,4.3096,3623.6,3623.5,0.46350001]
[1754481320439,7.06928649,3623.6,3623.5,1e-08]
[1754481320643,8.9785687,3623.6,3623.5,1e-08]
[1754481324740,41.9558687,3623.6,3623.5,1e-08]
[1754481328151,41.4802687,3623.6,3623.5,1e-08]
[1754481328357,41.9558687,3623.6,3623.5,1e-08]
[1754481330672,41.9568687,3623.6,3623.5,1e-08]
[1754481332226,36.8801687,3623.6,3623.5,1e-08]
[1754481332428,41.5024687,3623.6,3623.5,1e-08]
[1754481332645,41.9780687,3623.6,3623.5,1e-08]
[1754481342186,41.0531687,3623.6,3623.5,1e-08]
[1754481342472,41.9780687,3623.6,3623.5,1e-08]
[1754481342777,41.5024687,3623.6,3623.5,1e-08]
[1754481343078,37.3294687,3623.6,3623.5,1e-08]
[1754481343281,36.8801687,3623.6,3623.5,1e-08]
[1754481343450,32.89728649,3623.6,3623.5,0.90370001]
[1754481343650,7.07028649,3623.6,3623.5,0.90370001]
[1754481344867,0.1376,3623.6,3623.5,0.90370001]
[1754481345071,7.07028649,3623.6,3623.5,0.90370001]
[1754481347505,4.3106,3623.6,3623.5,0.90370001]
[1754481347660,0.1376,3623.6,3623.5,0.90370001]
[1754481347856,4.3106,3623.6,3623.5,0.90370001]
[1754481348097,0.1376,3623.6,3623.5,0.90370001]
[1754481348357,2.7603853,3624.0,3623.5,0.90370001]
[1754481348358,0.001,3624.0,3623.5,0.90370001]
[1754481348677,4.3106,3623.9,3623.6,0.4338]
[1754481348993,2.75962457,3623.7,3623.5,0.46990001]
[1754481349162,4.3106,3623.6,3623.5,0.46990001]
[1754481349358,7.07028649,3623.6,3623.5,0.46990001]
[1754481349760,4.3106,3623.6,3623.5,0.46990001]
[1754481349959,4.3106,3623.6,3623.5,0.90370001]
[1754481350158,4.173,3623.6,3623.5,0.90370001]
[1754481351578,4.173,3623.6,3623.5,0.92740001]
[1754481354592,4.173,3623.6,3623.5,0.49360001]
[1754481356002,4.173,3623.6,3623.5,0.93060001]
[1754481357868,6.93268649,3623.6,3623.5,1e-08]
[1754481358306,8.66190616,3623.6,3623.5,1e-08]
[1754481358488,7.52148649,3623.6,3623.5,1e-08]
[1754481358693,7.99998649,3623.6,3623.5,1e-08]
[1754481358879,10.99998649,3623.6,3623.5,1e-08]
[1754481364376,11.54998649,3623.6,3623.5,1e-08]
[1754481365817,41.54998649,3623.6,3623.5,1e-08]
[1754481366214,44.27864835,3623.6,3623.5,1e-08]
[1754481370494,55.93130197,3623.6,3623.5,1e-08]
[1754481370695,56.25153252,3623.6,3623.5,1e-08]
[1754481370929,56.36216252,3623.6,3623.5,1e-08]
[1754481372523,56.04193197,3623.6,3623.5,1e-08]
[1754481379334,51.39043197,3623.6,3623.5,1e-08]
[1754481379539,42.79894835,3623.6,3623.5,0.49360001]
[1754481380039,49.98294835,3623.6,3623.5,0.49360001]
[1754481380620,2.75983882,3623.4,3623.3,0.4936]
[1754481380838,2.75991499,3623.3,3623.2,0.437]
[1754481381452,2.75991499,3623.3,3623.2,0.9318]
[1754481384624,32.78752954,3623.3,3623.2,0.4948]
[1754481384817,35.48857685,3623.3,3623.2,0.4948]
[1754481385024,6.30999116,3623.2,3623.1,0.002]
[1754481385348,41.53039116,3623.2,3623.1,0.002]
[1754481385553,11.53039116,3623.2,3623.1,0.002]
[1754481385752,14.25905302,3623.2,3623.1,0.002]
[1754481386620,13.34925302,3623.2,3623.1,0.002]
[1754481386834,13.80355302,3623.2,3623.1,0.002]
[1754481387119,13.34925302,3623.2,3623.1,0.002]
[1754481388455,13.34925302,3623.2,3623.1,0.4968]
[1754481388766,10.07059116,3623.2,3623.1,0.9472]
[1754481393782,10.07059116,3623.2,3623.1,0.4504]
[1754481393926,7.0706349,3623.2,3623.1,0.4504]
[1754481394351,4.3106,3623.2,3623.1,0.4504]
[1754481394521,10.07059116,3623.2,3623.1,0.4504]
[1754481395441,7.3106,3623.2,3623.1,0.4504]
[1754481395641,7.3106,3623.2,3623.1,0.9452]
[1754481396963,7.3106,3623.2,3623.1,0.4948]
[1754481397168,7.3106,3623.2,3623.1,0.9452]
[1754481398263,10.07059116,3623.2,3623.1,0.9452]
[1754481398566,5.76006734,3623.1,3623.0,0.002]
[1754481398965,5.76006734,3623.1,3623.0,0.4968]
[1754481406741,7.13411319,3623.1,3623.0,0.002]
[1754481407078,8.04391319,3623.1,3623.0,0.002]
[1754481407653,7.58841319,3623.1,3623.0,0.002]
[1754481407852,49.79226681,3623.1,3623.0,1e-08]
[1754481408038,50.24656681,3623.1,3623.0,1e-08]
[1754481408236,50.35721081,3623.1,3623.0,1e-08]
[1754481408871,20.35721081,3623.1,3623.0,1e-08]
[1754481409081,50.35721081,3623.1,3623.0,1e-08]
[1754481413955,49.44741081,3623.1,3623.0,1e-08]
[1754481414292,53.63341081,3623.1,3623.0,1e-08]
[1754481414454,37.79475719,3623.1,3623.0,1e-08]
[1754481414654,41.98075719,3623.1,3623.0,1e-08]
[1754481414879,41.98075719,3623.1,3623.0,0.49390001]
[1754481415092,41.43075719,3623.1,3623.0,0.49390001]
[1754481415986,37.24475719,3623.1,3623.0,0.49390001]
[1754481416290,37.13411319,3623.1,3623.0,0.49390001]
[1754481416658,41.32011319,3623.1,3623.0,0.39390001]
[1754481417291,11.32011319,3623.1,3623.0,0.39390001]
[1754481417893,11.45851319,3623.1,3623.0,0.39390001]
[1754481418255,5.76021971,3622.9,3622.8,0.002]
[1754481418457,10.08461971,3622.9,3622.8,0.002]
[1754481418693,10.08461971,3622.9,3622.8,0.4959]
[1754481420814,40.08461971,3622.9,3622.8,0.002]
[1754481420970,40.99391971,3622.9,3622.8,0.002]
[1754481421164,40.55011971,3622.9,3622.8,0.002]
[1754481422499,35.89861971,3622.9,3622.8,0.002]
[1754481422747,40.08361971,3622.9,3622.8,0.002]
[1754481423013,5.89861971,3622.9,3622.8,0.4959]
[1754481423169,10.08261971,3622.9,3622.8,0.002]
[1754481423376,10.99191971,3622.9,3622.8,0.002]
[1754481425098,10.54811971,3622.9,3622.8,0.002]
[1754481425475,10.08261971,3622.9,3622.8,0.002]
[1754481428073,10.99191971,3622.9,3622.8,0.002]
[1754481428278,10.08261971,3622.9,3622.8,0.002]
[1754481430541,2.8082959,3622.8,3622.7,0.4959]
[1754481433450,2.8082959,3622.8,3622.7,0.9495]
[1754481433813,0.1864,3622.8,3622.7,0.9495]
[1754481434010,7.3674,3622.8,3622.7,0.9495]
[1754481434446,0.1864,3622.8,3622.7,0.9495]
[1754481434652,4.3684,3622.8,3622.7,0.9495]
[1754481434829,7.3684,3622.8,3622.7,0.9495]
[1754481440787,10.1286959,3622.8,3622.7,0.9495]
[1754481441086,10.1286959,3622.8,3622.7,0.8995]
[1754481442089,7.3684,3622.8,3622.7,0.8995]
[1754481443260,7.3684,3622.8,3622.7,0.4459]
[1754481444979,10.1286959,3622.8,3622.7,0.4459]
[1754481445706,7.3684,3622.8,3622.7,0.4459]
[1754481450614,7.3694,3622.8,3622.7,0.4459]
[1754481451609,7.62808244,3622.8,3622.7,0.4459]
[1754481452314,7.62809185,3622.8,3622.7,0.4459]
[1754481453902,7.62809185,3622.8,3622.6,0.002]
[1754481454100,0.25869185,3622.7,3622.6,0.4559]
[1754481456732,0.25869185,3622.7,3622.6,0.9096]
[1754481457420,4.43369185,3622.7,3622.6,1.27721476]
[1754481458039,4.43369185,3622.7,3622.6,4.03766305]
[1754481458489,4.43372971,3622.7,3622.6,4.03766305]
[1754481459028,4.43372971,3622.7,3622.6,1.27721476]
[1754481459226,4.43372971,3622.7,3622.6,0.9096]
[1754481460429,4.43372971,3622.7,3622.6,0.4559]
[1754481460629,4.43372971,3622.7,3622.6,0.9096]
[1754481460936,4.43372971,3622.7,3622.6,0.4559]
[1754481461806,4.43372971,3622.7,3622.6,0.002]
[1754481462004,5.38312971,3622.7,3622.6,0.002]
[1754481462306,4.43372971,3622.7,3622.6,0.002]
[1754481462706,4.57212971,3622.7,3622.6,0.002]
[1754481468043,5.05332971,3622.7,3622.6,0.002]
[1754481469051,4.57212971,3622.7,3622.6,0.002]
[1754481469234,4.43372971,3622.7,3622.6,0.9096]
[1754481471064,4.43372971,3622.7,3622.6,0.4559]
[1754481471343,0.25872971,3622.7,3622.6,0.4559]
[1754481471516,4.43272971,3622.7,3622.6,0.4559]
[1754481473262,4.43272971,3622.7,3622.6,0.9036]
[1754481473263,0.25872971,3622.7,3622.6,0.9036]
[1754481473414,4.43372971,3622.7,3622.6,0.9043]
[1754481473735,4.43372971,3622.7,3622.6,3.66474829]
[1754481474510,0.25872971,3622.7,3622.6,3.66474829]
[1754481474714,4.43372971,3622.7,3622.6,3.66474829]
[1754481476267,4.43381179,3622.7,3622.6,3.66474829]
[1754481477273,4.43281179,3622.7,3622.6,3.80314829]
[1754481478174,0.25881179,3622.7,3622.6,3.80314829]
[1754481478374,0.049,3622.8,3622.7,2.76037209]
[1754481478672,0.049,3622.8,3622.7,3.66267209]
[1754481478673,4.223,3622.8,3622.7,3.66267209]
[1754481479584,4.224,3622.8,3622.7,3.66267209]
[1754481479735,4.223,3622.8,3622.7,3.66267209]
[1754481480868,0.049,3622.8,3622.7,7.21267209]
[1754481481445,0.049,3622.8,3622.7,7.41810555]
[1754481483061,0.05,3623.0,3622.9,5.76021971]
[1754481483433,0.05,3623.0,3622.9,6.80091971]
[1754481484937,0.05,3623.0,3622.9,7.35091971]
[1754481485558,0.05,3623.0,3622.9,4.35091971]
[1754481490085,0.05,3623.0,3622.9,11.6585219]
[1754481490283,0.05,3623.0,3622.9,11.63091971]
[1754481492718,0.09999999,3623.5,3623.4,2.75983882]
[1754481493307,0.09999999,3623.5,3623.4,3.21443882]
[1754481493507,0.09999999,3623.5,3623.4,3.35203882]
[1754481494025,0.09999999,3623.5,3623.4,2.89743882]
[1754481495122,0.09999999,3623.5,3623.4,3.35203882]
[1754481495326,0.09999999,3623.5,3623.4,2.89743882]
[1754481497337,0.09999999,3623.5,3623.4,3.35203882]
[1754481497746,0.09999999,3623.5,3623.4,2.89743882]
[1754481497969,1.05389999,3623.5,3623.4,2.89743882]
[1754481499101,0.09999999,3623.5,3623.4,3.35203882]
[1754481500253,0.09999999,3623.5,3623.4,2.89743882]
[1754481501440,0.09999999,3623.5,3623.4,20.33646899]
[1754481504807,0.001,3623.6,3623.4,20.33646899]
[1754481504808,0.001,3623.6,3623.5,3.30976266]
[1754481505111,0.001,3623.6,3623.5,4.24256266]
[1754481505498,0.001,3623.8,3623.7,3.30961034]
[1754481505651,0.001,3623.8,3623.7,7.58961034]
[1754481505943,0.001,3623.8,3623.7,8.19211034]
[1754481507245,0.9513,3623.8,3623.7,7.17721034]
[1754481509358,0.9513,3623.8,3623.7,2.89721034]
[1754481516459,0.9513,3623.8,3623.1,3.0]
[1754481516635,5.1223,3623.7,3623.5,2.89730864]
[1754481516841,4.172,3623.7,3623.5,2.89730864]
[1754481517041,0.9503,3623.6,3623.5,2.89730864]
[1754481521056,0.9503,3623.6,3623.5,0.1376]
[1754481521246,0.9503,3623.6,3623.5,2.89736266]
[1754481522767,4.172,3623.7,3623.6,2.75968649]
[1754481523068,4.663,3623.7,3623.6,2.75968649]
[1754481523270,4.172,3623.7,3623.6,2.75968649]
[1754481524147,4.663,3623.7,3623.6,2.75968649]
[1754481525584,4.172,3623.7,3623.6,2.75968649]
[1754481526478,4.172,3623.7,3623.6,3.22458649]
[1754481526780,4.172,3623.7,3623.6,2.75968649]
[1754481528164,4.172,3623.7,3623.6,3.22458649]
[1754481528366,4.172,3623.7,3623.6,2.75968649]
[1754481528984,4.172,3623.7,3623.6,3.22458649]
[1754481530692,4.172,3623.7,3623.6,2.75968649]
[1754481530994,5.103,3623.7,3623.6,2.75968649]
[1754481533699,5.103,3623.7,3623.5,0.1376]
[1754481533700,5.103,3623.7,3623.5,2.89734427]
[1754481533997,5.103,3623.7,3623.5,0.1376]
[1754481533998,0.8904,3623.6,3623.5,0.1376]
[1754481534801,0.8904,3623.6,3623.5,2.89736266]
[1754481534968,0.8904,3623.6,3623.5,0.1376]
[1754481535167,0.8904,3623.6,3623.5,2.89736266]
[1754481535782,0.8904,3623.6,3623.5,0.1376]
[1754481536977,0.8904,3623.6,3623.5,2.89736266]
[1754481537388,0.8904,3623.6,3623.5,0.1376]
[1754481537711,1.14895024,3623.6,3623.5,0.1376]
[1754481537918,1.14895024,3623.6,3623.2,4.28]
[1754481538210,5.27195024,3623.5,3623.4,0.1376]
[1754481539710,5.27195024,3623.5,3623.4,2.89743882]
[1754481540906,5.27195024,3623.5,3623.4,0.1376]
[1754481541272,5.27195024,3623.5,3623.4,2.89743882]
[1754481542901,5.27195024,3623.5,3623.4,0.1376]
[1754481543103,5.79934526,3623.5,3623.4,0.1376]
[1754481543310,5.93694526,3623.5,3623.0,0.1384]
[1754481543485,0.25855024,3623.4,3623.0,0.1384]
[1754481543826,4.43155024,3623.3,3623.0,0.1384]
[1754481543980,0.25855024,3623.2,3623.0,0.1384]
[1754481544322,0.25855024,3623.2,3623.0,2.89854352]
[1754481544323,4.613,3623.1,3623.0,2.89854352]
[1754481544710,5.0634,3623.1,3623.0,2.89854352]
[1754481547077,5.0634,3623.1,3623.0,0.1384]
[1754481547798,5.0634,3623.1,3623.0,2.89854352]
[1754481551586,4.173,3623.1,3623.0,2.89854352]
[1754481553926,0.4504,3623.3,3623.1,2.76006677]
[1754481554121,4.173,3623.2,3623.1,2.76006677]
[1754481554347,4.6234,3623.2,3623.1,2.76006677]
[1754481554947,4.6234,3623.2,3623.0,2.89850811]
[1754481555145,4.6234,3623.2,3623.1,2.76006734]
[1754481555730,4.6234,3623.2,3623.0,2.89851938]
[1754481557131,4.6234,3623.2,3623.1,2.76006734]
[1754481557939,4.173,3623.2,3623.1,2.76006734]
[1754481558308,4.173,3623.2,3623.1,2.76206734]
[1754481560848,4.173,3623.2,3623.1,3.25546734]
[1754481561009,4.173,3623.2,3623.1,2.76206734]
[1754481564157,4.173,3623.2,3623.1,3.66156734]
[1754481565628,4.173,3623.2,3623.1,3.21976734]
[1754481566929,4.173,3623.2,3623.1,3.66156734]
[1754481567330,4.43153533,3623.2,3623.1,3.66156734]
[1754481569415,4.43153533,3623.2,3623.1,3.21976734]
[1754481571553,4.43162063,3623.2,3623.1,3.21976734]
[1754481572522,4.43162063,3623.2,3623.1,3.66156734]
[1754481573348,4.43167975,3623.2,3623.1,3.66156734]
[1754481573546,0.001,3623.5,3623.4,2.75983882]
[1754481573748,4.43268203,3623.5,3623.4,3.2451372]
[1754481573925,4.43268203,3623.5,3623.4,3.79693882]
[1754481574728,4.43268203,3623.5,3623.4,3.35513882]
[1754481576558,0.25968203,3623.5,3623.4,3.35513882]
[1754481576746,4.43268203,3623.5,3623.4,3.79693882]
[1754481577137,0.25968203,3623.5,3623.4,3.35513882]
[1754481577339,4.174,3623.5,3623.4,3.79693882]
[1754481577544,0.001,3623.5,3623.4,3.79693882]
[1754481577745,4.174,3623.5,3623.4,3.79693882]
[1754481578129,0.001,3623.5,3623.4,3.79693882]
[1754481581027,0.001,3623.5,3623.4,4.34693882]
[1754481581229,0.001,3623.5,3623.4,4.3745372]
[1754481581468,0.001,3623.5,3623.4,4.34693882]
[1754481586242,0.001,3623.5,3623.4,8.62693882]
[1754481589454,0.001,3623.5,3623.4,11.62693882]
[1754481592560,0.001,3623.5,3623.4,10.72743882]
[1754481593280,0.001,3623.5,3623.4,11.22093882]
[1754481595084,0.001,3623.5,3623.4,11.68523882]
[1754481596162,0.001,3623.5,3623.4,11.22093882]
[1754481600279,0.001,3623.5,3623.4,10.17743882]
[1754481600475,0.9281,3623.5,3623.4,10.17743882]
[1754481600680,0.9281,3623.5,3623.4,7.17743882]
[1754481601256,0.4855,3623.5,3623.4,7.17743882]
[1754481601454,0.4855,3623.5,3623.4,7.17943882]
[1754481602197,0.001,3623.5,3623.4,7.67293882]
[1754481602393,0.001,3623.5,3623.4,8.13723882]
[1754481603166,0.001,3623.5,3623.4,15.85823882]
[1754481603493,0.001,3623.8,3623.7,6.30961034]
[1754481603670,0.001,3623.8,3623.7,17.97779029]
[1754481603869,1e-08,3623.8,3623.7,18.93559029]
[1754481604698,1e-08,3624.0,3623.9,6.30945804]
[1754481605191,1e-08,3624.0,3623.9,7.40485804]
[1754481606689,1e-08,3624.0,3623.9,6.94055804]
[1754481606862,0.001,3624.3,3624.2,3.30922962]
[1754481607060,0.001,3624.4,3624.3,3.30915349]
[1754481607298,0.001,3624.8,3624.5,0.55]
[1754481607496,0.001,3624.8,3624.6,14.97710507]
[1754481607699,0.001,3624.8,3624.6,15.60820507]
[1754481607997,0.1776,3625.9,3625.6,2.75816416]
[1754481607998,0.04,3625.9,3625.6,2.75816416]
[1754481608310,0.04,3625.9,3625.8,2.75801202]
[1754481608475,0.04,3625.9,3625.8,2.89561202]
[1754481608678,0.04,3625.9,3625.8,0.1376]
[1754481608873,0.04,3625.9,3625.4,2.75824167]
[1754481608874,0.9671,3625.9,3625.4,2.75824167]
[1754481609076,0.19667172,3625.9,3625.7,0.1376]
[1754481609398,0.9271,3625.8,3625.7,2.89568809]
[1754481609771,0.9271,3625.8,3625.7,0.1376]
[1754481610361,0.9271,3625.8,3624.9,2.75869635]
[1754481610657,0.9271,3625.7,3624.6,0.55]
[1754481610806,4.17,3625.6,3625.4,0.1376]
[1754481611101,5.0971,3625.6,3625.4,0.1376]
[1754481611278,0.9271,3625.5,3625.4,0.1376]
[1754481611665,0.9271,3625.5,3624.7,2.75879862]
[1754481611870,1.43681,3625.4,3625.1,0.1376]
[1754481612274,0.9271,3625.3,3625.1,0.1376]
[1754481612775,0.9271,3625.2,3625.1,0.1376]
[1754481614774,0.9271,3625.2,3624.4,2.75906658]
[1754481614775,3.68558087,3625.2,3624.4,2.75906658]
[1754481615011,1.59299042,3625.1,3624.8,0.1376]
[1754481615196,4.17,3625.0,3624.8,0.1376]
[1754481615598,0.9271,3624.9,3624.8,0.1376]
[1754481617128,0.9271,3624.9,3624.6,0.1376]
[1754481617306,0.4426,3624.9,3624.6,0.1376]
[1754481617488,0.9271,3624.8,3624.6,0.1376]
[1754481617882,4.94319797,3625.0,3624.6,0.1376]
[1754481618082,0.9271,3624.7,3624.6,0.1376]
[1754481619378,0.9271,3624.7,3624.6,2.89652512]
[1754481620516,0.4845,3624.7,3624.6,2.89652512]
[1754481620683,4.17,3625.0,3624.6,2.89652512]
[1754481620883,0.9081,3624.9,3624.6,2.89652512]
[1754481621079,4.17,3625.0,3624.6,2.89652512]
[1754481621510,0.9081,3624.9,3624.6,2.89652512]
[1754481621708,4.17,3625.0,3624.6,2.89652512]
[1754481622025,0.9081,3624.8,3624.7,2.75883804]
[1754481624829,0.9081,3624.8,3624.6,0.1376]
[1754481624982,0.9081,3624.7,3624.6,0.1376]
[1754481626824,0.9081,3624.7,3624.6,2.89652512]
[1754481627023,4.17,3625.0,3624.7,2.758849]
[1754481627227,4.6283,3625.0,3624.7,2.758849]
[1754481627422,4.6198,3625.0,3624.7,2.758849]
[1754481627625,0.4583,3624.9,3624.8,2.75877289]
[1754481627833,4.17,3624.9,3624.8,2.75877289]
[1754481628001,4.17,3624.9,3624.8,3.39597289]
[1754481628323,4.17,3624.9,3624.8,2.89637289]
[1754481629714,4.17,3624.9,3624.8,3.39597289]
[1754481631835,4.17,3624.9,3624.8,2.89637289]
[1754481635097,4.17,3624.9,3624.8,3.39597289]
[1754481635331,4.17,3624.9,3624.8,3.85427289]
[1754481636236,4.17,3624.9,3624.8,3.39597289]
[1754481637549,4.17,3624.9,3624.8,0.1376]
[1754481637710,5.0781,3624.9,3624.8,0.1376]
[1754481637915,5.0781,3624.9,3624.8,2.89637289]
[1754481641650,4.6283,3624.9,3624.8,2.89637289]
[1754481643256,4.17,3624.9,3624.8,2.89637289]
[1754481643431,4.17,3624.9,3624.8,3.39597289]
[1754481643632,4.17,3624.9,3624.8,1.0955]
[1754481644119,4.17,3624.9,3624.8,3.85626724]
[1754481644539,4.171,3624.9,3624.8,3.85626724]
[1754481645531,4.171,3624.9,3624.8,3.39796724]
[1754481655384,0.001,3625.3,3625.2,19.04734844]
[1754481658541,0.049785,3625.4,3625.3,2.7583924]
[1754481658846,1e-08,3625.4,3625.3,11.4104924]
[1754481660646,1e-08,3625.4,3625.3,6.3083924]
[1754481660846,0.90340001,3625.4,3625.3,5.7583924]
[1754481661180,0.90340001,3625.4,3625.3,2.7583924]
[1754481664887,0.90340001,3625.4,3625.2,2.89603734]
[1754481665093,1e-08,3625.4,3625.3,2.7583924]
[1754481665872,0.90440001,3625.4,3625.3,2.7583924]
[1754481666772,0.47500001,3625.4,3625.3,2.7583924]
[1754481667190,0.90440001,3625.4,3625.3,2.7583924]
[1754481669183,0.90440001,3625.4,3625.2,2.89605252]
[1754481669381,0.474,3625.3,3625.2,2.89605252]
[1754481669564,0.9034,3625.3,3625.2,2.89605252]
[1754481669771,0.9034,3625.3,3625.2,0.1376]
[1754481669986,1.41074,3625.3,3625.1,0.1376]
[1754481670304,0.9034,3625.2,3625.1,0.1376]
[1754481671111,0.9034,3625.2,3625.1,2.89614459]
[1754481671298,0.9034,3625.2,3625.1,0.1376]
[1754481672811,0.9034,3625.2,3625.1,2.89614459]
[1754481673190,0.00100001,3625.4,3625.2,2.75841296]
[1754481673703,0.00100001,3625.4,3625.3,2.7583924]
[1754481673871,4.17000001,3625.4,3625.3,2.8959924]
[1754481674509,5.07340001,3625.4,3624.8,0.002]
[1754481674716,0.9034,3625.3,3625.2,0.1376]
[1754481675213,4.17000001,3625.4,3625.2,2.89606849]
[1754481676222,4.64400001,3625.4,3625.2,2.89606849]
[1754481676396,4.17000001,3625.4,3625.2,2.89606849]
[1754481676604,0.9034,3625.3,3625.2,0.1376]
[1754481676799,0.9034,3625.3,3624.8,0.002]
[1754481676993,0.9034,3625.2,3625.1,0.1376]
[1754481679929,4.17000001,3625.4,3625.1,0.1376]
[1754481680284,0.9034,3625.3,3625.1,0.1376]
[1754481680888,0.4707,3625.2,3625.1,0.1376]
[1754481681081,0.9001,3625.3,3625.1,0.1376]
[1754481681595,0.4707,3625.2,3625.1,0.1376]
[1754481683337,4.17000001,3625.4,3625.2,2.75844883]
[1754481683495,0.00100001,3625.4,3625.3,2.7583924]
[1754481683696,4.17000001,3625.4,3625.3,2.7583924]
[1754481684113,0.00100001,3625.4,3625.3,3.6769924]
[1754481684307,4.17000001,3625.4,3625.3,3.8145924]
[1754481685195,0.00100001,3625.4,3625.3,3.8145924]
[1754481686104,0.00100001,3625.4,3625.3,4.3645924]
[1754481686326,0.00100001,3625.4,3625.3,7.3645924]
[1754481687434,0.00100001,3625.4,3625.3,8.1933274]
[1754481688501,0.00100001,3625.4,3625.3,12.3643274]
[1754481689747,0.00100001,3625.4,3625.3,11.5355924]
[1754481689918,0.00100001,3625.4,3625.3,15.8155924]
[1754481690518,0.00100001,3625.4,3625.3,10.6349924]
[1754481690827,0.00100001,3625.4,3625.3,10.1759924]
[1754481692137,0.00100001,3625.4,3625.3,11.0945924]
[1754481692654,0.00100001,3625.4,3625.3,10.6349924]
[1754481694143,0.00100001,3625.4,3625.3,10.1759924]
[1754481694844,0.00100001,3625.4,3625.3,10.6349924]
[1754481695358,0.00100001,3625.4,3625.3,11.0945924]
[1754481695658,0.00100001,3625.4,3625.3,11.6445924]
[1754481696608,0.00100001,3625.4,3625.3,15.8145924]
[1754481698140,0.00100001,3625.4,3625.3,15.3549924]
[1754481698347,0.00100001,3625.4,3625.3,10.1759924]
[1754481700038,0.00100001,3625.4,3625.3,10.6349924]
[1754481700347,0.00100001,3625.4,3625.3,11.0945924]
[1754481700720,0.00100001,3625.4,3625.3,11.6445924]
[1754481701048,0.00100001,3625.4,3625.3,14.8959924]
[1754481701223,0.00100001,3625.4,3625.3,15.8145924]
[1754481701628,0.001,3625.8,3625.4,3.55]
[1754481701817,0.001,3625.8,3625.7,17.42626804]
[1754481702147,0.001,3625.8,3625.7,18.18473843]
[1754481702352,0.001,3625.8,3625.7,22.46473843]
[1754481702546,0.001,3625.8,3625.7,23.17486804]
[1754481702753,0.001,3625.8,3625.7,23.31246804]
[1754481702953,0.04,3625.9,3625.8,6.30801202]
[1754481703454,0.04,3625.9,3625.8,11.39761202]
[1754481707529,1e-08,3626.0,3625.9,3.30793596]
[1754481707860,0.001,3626.1,3626.0,3.3078599]
[1754481707861,1e-08,3626.1,3626.0,3.3078599]
[1754481708085,1e-08,3626.1,3626.0,8.3964599]
[1754481708227,1e-08,3626.1,3626.0,11.3964599]
[1754481708864,0.001,3626.5,3626.2,0.55]
[1754481709029,0.001,3626.5,3626.2,16.52677995]
[1754481709362,0.001,3626.5,3626.2,20.20308774]
[1754481711061,0.001,3626.5,3626.2,23.20308774]
[1754481712373,0.001,3626.5,3626.4,6.3075557]
[1754481712374,1e-08,3626.5,3626.4,6.3075557]
[1754481712558,1e-08,3626.5,3626.4,10.4765557]
[1754481712875,1e-08,3626.5,3626.4,11.5706557]
[1754481715451,1e-08,3626.9,3626.8,3.30725157]
[1754481715768,1e-08,3626.9,3626.8,22.14543152]
[1754481715949,1e-08,3626.9,3626.8,22.28303152]
[1754481716271,1e-08,3626.9,3626.8,23.23953152]
[1754481716676,1e-08,3626.9,3626.8,22.76653152]
[1754481716979,0.48080001,3626.9,3626.8,22.28303152]
[1754481717156,1e-08,3626.9,3626.8,22.28303152]
[1754481717546,1e-08,3626.9,3626.8,22.76653152]
[1754481718770,1e-08,3626.9,3626.8,22.28303152]
[1754481718952,0.95100001,3626.9,3626.8,10.61485157]
[1754481719141,0.95100001,3626.9,3626.8,5.89485157]
[1754481719540,0.95100001,3626.9,3626.8,2.89485157]
[1754481720055,0.95100001,3626.9,3626.8,0.1376]
[1754481720255,0.95100001,3626.9,3626.6,2.75739218]
[1754481720456,0.951,3626.8,3626.5,2.7574556]
[1754481720651,0.951,3626.7,3626.6,2.75739121]
[1754481721059,0.951,3626.7,3626.6,2.89499121]
[1754481722476,0.4808,3626.7,3626.6,2.89499121]
[1754481722651,0.951,3626.7,3626.6,2.89499121]
[1754481723486,1e-08,3626.9,3626.8,2.75725157]
[1754481723983,1e-08,3626.9,3626.8,2.89485157]
[1754481724157,0.48080001,3626.9,3626.8,2.89485157]
[1754481724365,0.95100001,3626.9,3626.8,2.89485157]
[1754481724787,0.95100001,3626.9,3626.8,0.1376]
[1754481725389,0.95100001,3626.9,3626.8,2.89485157]
[1754481726588,0.95100001,3626.9,3626.8,5.89485157]
[1754481728897,1e-08,3626.9,3626.8,5.89485157]
[1754481729753,0.00100001,3626.9,3626.8,2.89485157]
[1754481729958,0.00100001,3626.9,3626.8,0.1376]
[1754481730258,0.95200001,3626.9,3626.6,0.1376]
[1754481730474,0.00100001,3626.9,3626.6,0.1376]
[1754481730887,0.1376,3626.7,3626.3,3.0]
[1754481731324,0.951,3626.6,3626.3,2.75761839]
[1754481731505,0.1376,3626.7,3626.2,0.1376]
[1754481731709,0.951,3626.5,3626.2,0.1376]
[1754481731912,0.951,3626.4,3626.2,2.89523987]
[1754481732212,0.25789668,3626.6,3626.3,2.75763174]
[1754481732514,0.25789668,3626.5,3626.3,2.75763174]
[1754481732809,0.951,3626.4,3626.3,2.75763174]
[1754481733183,0.951,3626.4,3626.2,0.1376]
[1754481733381,0.1376,3626.7,3626.3,2.75761815]
[1754481733592,0.25791657,3626.6,3626.3,2.75761815]
[1754481733795,0.25791657,3626.5,3626.3,2.75761815]